bitfinex-derivatives/quotes_SOLF0:USTF0_20251119
["timestamp","ask_amount","ask_price","bid_price","bid_amount"]
[1763553637879,0.04972342,138.72,138.71,9.5431]
[1763553638978,123.72700924,138.76,138.74,3.05]
[1763553639288,123.72700924,138.76,138.73,9.5421]
[1763553639475,138.78700924,138.76,138.73,9.5421]
[1763553639675,138.78700924,138.76,138.74,3.05]
[1763553639877,138.83724028,138.76,138.74,3.10244735]
[1763553643074,138.83724028,138.76,138.74,0.05244735]
[1763553643681,138.83724028,138.76,138.74,3.10244735]
[1763553645478,123.77724028,138.76,138.74,3.10244735]
[1763553645683,123.77724028,138.76,138.75,3.05]
[1763553645880,0.05023104,138.76,138.75,3.05]
[1763553646983,0.05023104,138.76,138.75,9.5412]
[1763553647384,0.05023104,138.76,138.75,3.05]
[1763553648280,0.05023104,138.76,138.71,3.05]
[1763553648583,15.06,138.75,138.68,3.05]
[1763553649481,0.05377229,138.73,138.7,0.0493216]
[1763553649887,6.54597229,138.73,138.7,0.0493216]
[1763553650990,6.4928,138.72,138.7,0.0493216]
[1763553651786,15.06,138.71,138.7,0.0493216]
[1763553662889,15.06,138.72,138.62,3.05]
[1763553663093,101.0044,138.71,138.62,3.05]
[1763553663288,122.71032693,138.72,138.62,3.05]
[1763553663795,122.71032693,138.72,138.64,3.05]
[1763553663995,6.54368838,138.69,138.67,0.04945533]
[1763553664192,15.06,138.68,138.67,0.04945533]
[1763553669000,6.54368838,138.69,138.67,0.04945533]
[1763553669199,15.06,138.68,138.67,0.04945533]
[1763553669795,0.04948838,138.69,138.67,0.04945533]
[1763553669991,15.10948838,138.69,138.67,0.04945533]
[1763553671902,21.60358838,138.69,138.67,0.04945533]
[1763553674807,6.4945,138.68,138.67,0.04945533]
[1763553675901,6.4954,138.66,138.63,3.08]
[1763553676107,15.06,138.65,138.61,3.08]
[1763553676310,15.06,138.65,138.61,9.5777]
[1763553676505,6.4964,138.64,138.59,3.08]
[1763553676900,6.4964,138.64,138.6,3.08]
[1763553677200,0.04706544,138.63,138.6,3.12649161]
[1763553677407,0.04706544,138.63,138.6,0.04649161]
[1763553678106,6.4973,138.62,138.6,0.04649161]
[1763553678907,0.04706544,138.63,138.6,0.04649161]
[1763553680710,15.06,138.62,138.6,0.04649161]
[1763553682796,21.5574,138.62,138.6,0.04649161]
[1763553683010,21.5574,138.62,138.54,3.0517358]
[1763553683011,3.0517358,138.61,138.54,3.08]
[1763553683308,3.0517358,138.61,138.54,9.581]
[1763553684011,6.4993,138.58,138.56,0.0479983]
[1763553684212,21.5593,138.58,138.56,0.0479983]
[1763553690516,15.06,138.57,138.56,3.0279983]
[1763553691014,15.06,138.57,138.56,0.0479983]
[1763553692120,15.11306189,138.59,138.56,3.0279983]
[1763553692821,15.11306189,138.59,138.56,9.5280983]
[1763553693023,15.11306189,138.59,138.56,3.0279983]
[1763553693523,0.05306189,138.59,138.56,3.0279983]
[1763553694622,0.05306189,138.59,138.58,2.98]
[1763553703623,0.05306189,138.59,138.58,9.4792]
[1763553704420,1.95634365,138.7,138.61,3.27]
[1763553704723,15.06,138.69,138.62,3.27]
[1763553705314,0.05205232,138.67,138.64,0.0515042]
[1763553705825,0.05205232,138.67,138.64,3.3215042]
[1763553707521,1.95634365,138.66,138.57,3.27]
[1763553707720,101.0415,138.66,138.57,3.27]
[1763553708022,1.95634365,138.64,138.57,3.27]
[1763553708618,0.04676422,138.62,138.59,3.31863761]
[1763553709431,0.04676422,138.62,138.59,9.81733761]
[1763553710423,0.04676422,138.62,138.6,3.27]
[1763553713032,0.04676422,138.62,138.6,9.7682]
[1763553713227,0.04676422,138.62,138.61,3.27]
[1763553718146,2.00310787,138.62,138.59,0.04863761]
[1763553718831,6.4978,138.61,138.59,0.04863761]
[1763553720930,21.5578,138.61,138.59,0.04863761]
[1763553721127,6.4982,138.6,138.59,0.04863761]
[1763553721428,17.03634365,138.6,138.54,3.27]
[1763553721936,17.03634365,138.6,138.55,3.27]
[1763553722132,6.62653064,138.62,138.55,3.27]
[1763553722339,0.05367825,138.59,138.57,3.27]
[1763553722635,0.04644296,138.59,138.57,9.81806017]
[1763553722841,0.04644296,138.59,138.58,3.27]
[1763553725039,0.04644296,138.59,138.57,3.31856017]
[1763553727239,0.04644296,138.59,138.58,3.27]
[1763553733353,0.04644296,138.59,138.58,9.7692]
[1763553736149,0.04644296,138.59,138.58,3.27]
[1763553736542,0.04644296,138.59,138.57,0.04856017]
[1763553736746,2.00278661,138.59,138.57,0.04856017]
[1763553737147,6.4992,138.58,138.57,0.04856017]
[1763553737446,8.62931725,138.59,138.54,3.03]
[1763553737656,1.95634365,138.57,138.54,3.03]
[1763553737837,15.08,138.56,138.51,3.03]
[1763553738041,1.95634365,138.55,138.51,3.03]
[1763553738239,6.5011,138.54,138.51,3.03]
[1763553738442,6.55459966,138.54,138.51,3.03]
[1763553738651,6.55459966,138.54,138.51,3.05407409]
[1763553740347,0.05349966,138.54,138.51,3.05407409]
[1763553741347,0.05349966,138.54,138.51,0.02407409]
[1763553741547,0.05349966,138.54,138.51,3.05407409]
[1763553742050,2.00984331,138.54,138.51,0.02407409]
[1763553742652,2.00984331,138.54,138.51,3.05407409]
[1763553743852,17.08984331,138.54,138.51,3.05407409]
[1763553744548,23.59094331,138.54,138.51,3.05407409]
[1763553747459,8.51094331,138.54,138.51,3.05407409]
[1763553747659,23.59094331,138.54,138.51,3.05407409]
[1763553750263,6.5016,138.53,138.51,0.02407409]
[1763553750760,6.502,138.52,138.51,0.02407409]
[1763553751963,8.45834365,138.52,138.51,0.02407409]
[1763553752158,23.53834365,138.52,138.51,0.02407409]
[1763553753362,1.95634365,138.5,138.45,9.7652]
[1763553753569,1.95634365,138.5,138.42,3.26]
[1763553753756,6.5034,138.49,138.45,3.26]
[1763553753951,15.1,138.48,138.45,3.26]
[1763553754361,15.14864164,138.48,138.45,3.26]
[1763553754961,15.14864164,138.48,138.45,9.7653]
[1763553755465,0.04864164,138.48,138.46,3.26]
[1763553756161,0.04864164,138.48,138.47,9.7643]
[1763553758053,0.04864164,138.48,138.47,3.26]
[1763553758254,0.04864164,138.48,138.45,9.7351]
[1763553758454,0.04864164,138.48,138.46,3.23]
[1763553759469,0.04864164,138.48,138.46,9.7347]
[1763553759861,0.04864164,138.48,138.47,3.23]
[1763553761563,0.04864164,138.48,138.44,9.7353]
[1763553761766,0.04864164,138.48,138.41,3.23]
[1763553761966,15.1,138.47,138.41,3.23]
[1763553762266,15.1,138.47,138.44,3.23]
[1763553762466,15.15307365,138.47,138.44,3.23]
[1763553763063,0.05307365,138.47,138.44,3.23]
[1763553763266,15.15307365,138.47,138.44,3.23]
[1763553765072,0.05307365,138.47,138.44,3.23]
[1763553767172,15.15307365,138.47,138.44,3.23]
[1763553772978,0.05307365,138.47,138.44,9.7357]
[1763553773165,0.05307365,138.47,138.44,3.23]
[1763553773666,0.05307365,138.47,138.46,3.23]
[1763553779580,0.05307365,138.47,138.46,9.7348]
[1763553787084,6.502,138.52,138.49,3.23]
[1763553787288,21.602,138.52,138.49,3.23]
[1763553787974,15.1,138.52,138.49,6.5551698]
[1763553788171,0.05432117,138.52,138.5,3.23]
[1763553788975,0.05432117,138.52,138.5,9.7328]
[1763553789178,0.05432117,138.52,138.5,3.23]
[1763553789377,0.05432117,138.52,138.49,3.2817698]
[1763553789676,6.55642117,138.52,138.49,3.2817698]
[1763553791483,6.5025,138.51,138.49,0.0517698]
[1763553791786,15.1,138.5,138.49,0.0517698]
[1763553795682,15.1,138.5,138.45,3.23]
[1763553795887,15.1,138.5,138.41,3.23]
[1763553796089,21.71899954,138.5,138.41,3.23]
[1763553796387,6.5044,138.47,138.43,3.23]
[1763553796581,15.1,138.46,138.43,3.23]
[1763553796891,15.15388005,138.46,138.43,3.23]
[1763553799484,0.05388005,138.46,138.44,3.23]
[1763553800388,0.05388005,138.46,138.44,9.7357]
[1763553800582,0.05388005,138.46,138.44,6.5057]
[1763553800787,0.05388005,138.46,138.44,3.23]
[1763553804595,6.55878005,138.46,138.44,3.23]
[1763553805391,6.5053,138.45,138.41,3.24]
[1763553805794,104.25694721,138.45,138.35,2.03003734]
[1763553806091,3.06284721,138.39,138.35,0.47156871]
[1763553806894,15.12,138.38,138.35,3.71156871]
[1763553807086,15.17104218,138.38,138.35,3.71156871]
[1763553808390,15.17104218,138.38,138.35,0.47156871]
[1763553808887,15.17104218,138.38,138.35,3.71156871]
[1763553809093,15.17104218,138.38,138.35,0.47156871]
[1763553811192,0.05104218,138.38,138.35,3.71156871]
[1763553811992,0.05104218,138.38,138.37,3.24]
[1763553812194,0.05104218,138.38,138.36,3.24]
[1763553820503,6.55964218,138.38,138.36,3.24]
[1763553820700,0.05104218,138.38,138.36,3.24]
[1763553822806,8.52316231,138.38,138.36,3.24]
[1763553823898,6.55964218,138.38,138.36,3.24]
[1763553830314,0.05104218,138.38,138.36,3.24]
[1763553830901,0.05104218,138.38,138.36,9.7495]
[1763553831110,0.05104218,138.38,138.37,3.3]
[1763553831607,0.05104218,138.38,138.37,9.8091]
[1763553832407,0.05104218,138.38,138.37,3.3]
[1763553833921,0.05104218,138.38,138.37,9.8091]
[1763553834911,15.12,138.44,138.39,3.3]
[1763553835115,1.96352013,138.43,138.39,3.3]
[1763553835712,1.96352013,138.43,138.4,3.3]
[1763553835911,2.01880642,138.43,138.4,3.35364172]
[1763553836314,0.05528629,138.43,138.4,3.35364172]
[1763553836907,6.56158629,138.43,138.4,3.35364172]
[1763553837911,0.05528629,138.43,138.4,9.86134172]
[1763553838107,0.05528629,138.43,138.41,3.3]
[1763553841114,2.01880642,138.43,138.4,3.35364172]
[1763553841617,6.5068,138.42,138.4,3.35364172]
[1763553843118,0.05528629,138.43,138.4,3.35364172]
[1763553843712,0.05528629,138.43,138.42,3.3]
[1763553844313,15.12,138.45,138.42,9.8063]
[1763553844520,15.12,138.45,138.43,3.3]
[1763553844723,1.96352013,138.48,138.43,3.3]
[1763553845620,0.04891032,138.47,138.45,3.3]
[1763553846910,0.04891032,138.47,138.44,3.34915402]
[1763553849222,8.46612013,138.51,138.44,3.34915402]
[1763553850321,0.0473438,138.49,138.44,3.34915402]
[1763553850908,0.0473438,138.49,138.46,3.0]
[1763553851111,0.0473438,138.49,138.45,3.0]
[1763553851314,2.01086393,138.49,138.45,3.0]
[1763553852027,8.51436393,138.49,138.45,3.0]
[1763553853021,0.0473438,138.49,138.45,3.0]
[1763553853823,6.5508438,138.49,138.45,3.0]
[1763553854024,1.96352013,138.48,138.45,3.0]
[1763553854424,6.504,138.48,138.45,3.0]
[1763553854621,2.01086393,138.49,138.45,3.0]
[1763553854817,0.0473438,138.49,138.45,3.0]
[1763553855018,0.0473438,138.49,138.46,3.0]
[1763553856617,0.0473438,138.49,138.48,3.0]
[1763553857326,15.1,138.52,138.5,3.0]
[1763553858334,15.15334397,138.52,138.5,3.0]
[1763553861832,0.05334397,138.52,138.51,3.0]
[1763553862528,6.5006,138.56,138.51,3.0]
[1763553862729,6.5006,138.56,138.52,3.0]
[1763553863525,0.05372373,138.55,138.52,3.0]
[1763553863732,0.05372373,138.55,138.53,3.04]
[1763553863928,15.1,138.57,138.53,3.04]
[1763553864240,15.1,138.57,138.56,3.04]
[1763553864736,17.06352013,138.61,138.56,3.04]
[1763553864941,6.4985,138.6,138.56,3.04]
[1763553865123,1.96352013,138.59,138.57,3.08675433]
[1763553865327,0.05311877,138.59,138.57,0.05553162]
[1763553867129,0.05311877,138.59,138.57,3.09553162]
[1763553868834,0.05311877,138.59,138.57,9.59513162]
[1763553869136,0.05311877,138.59,138.58,3.04]
[1763553874331,0.05311877,138.59,138.57,3.09553162]
[1763553875642,0.05311877,138.59,138.57,9.59503162]
[1763553875843,0.05311877,138.59,138.58,3.04]
[1763553876841,6.4972,138.63,138.58,3.04]
[1763553877036,3.057661,138.64,138.58,3.04]
[1763553877240,6.59088094,138.7,138.62,3.04]
[1763553877241,3.057661,138.66,138.62,3.04]
[1763553877635,9.553261,138.66,138.62,3.04]
[1763553877837,0.050356,138.65,138.63,3.20591938]
[1763553880838,0.050356,138.65,138.64,3.16]
[1763553881933,3.057661,138.71,138.65,3.16]
[1763553882136,18.157661,138.71,138.65,3.16]
[1763553882841,0.05280736,138.69,138.67,3.21138042]
[1763553885040,0.05280736,138.69,138.67,9.70638042]
[1763553885246,217.85992203,138.74,138.68,3.16]
[1763553885648,217.85992203,138.74,138.7,3.16]
[1763553885849,214.80226103,138.74,138.7,3.16]
[1763553886236,0.04938942,138.73,138.71,0.05347385]
[1763553886442,0.04938942,138.73,138.72,3.16]
[1763553887551,3.057661,138.79,138.73,3.16]
[1763553887552,15.1,138.78,138.73,3.16]
[1763553887957,24.627361,138.79,138.73,3.16]
[1763553888158,6.49,138.78,138.73,3.16]
[1763553888558,0.04561936,138.77,138.74,3.21507924]
[1763553890357,6.53611936,138.77,138.74,0.05507924]
[1763553890548,0.04561936,138.77,138.74,0.05507924]
[1763553890954,6.4909,138.76,138.74,0.05507924]
[1763553892766,9.548561,138.76,138.74,0.05507924]
[1763553893363,6.4909,138.76,138.74,0.05507924]
[1763553894871,21.5709,138.76,138.74,0.05507924]
[1763553896571,6.4909,138.76,138.74,0.05507924]
[1763553896874,21.5709,138.76,138.74,0.05507924]
[1763553900175,6.4933,138.71,138.66,3.16]
[1763553900377,104.040561,138.75,138.66,3.16]
[1763553900378,3.057661,138.75,138.66,3.16]
[1763553900570,124.20311296,138.79,138.66,3.16]
[1763553900571,124.20311296,138.79,138.7,3.16]
[1763553900877,6.49,138.78,138.72,3.16]
[1763553901173,0.05032176,138.76,138.75,3.16]
[1763553903668,0.05032176,138.76,138.74,0.05349005]
[1763553903870,15.08,138.75,138.74,0.05349005]
[1763553904582,15.08,138.75,138.67,3.16]
[1763553904583,116.0574,138.75,138.67,3.16]
[1763553904876,6.4932,138.71,138.67,3.16]
[1763553905264,15.08,138.71,138.67,3.16]
[1763553905467,0.05217855,138.7,138.67,3.16]
[1763553905665,0.05217855,138.7,138.61,101.0745]
[1763553905666,0.05217855,138.7,138.68,3.2148106]
[1763553905865,0.04561718,138.7,138.68,0.05191534]
[1763553907180,6.53931718,138.7,138.68,0.05191534]
[1763553907875,0.04561718,138.7,138.68,0.05191534]
[1763553908877,15.08,138.69,138.68,0.05191534]
[1763553910080,15.08,138.69,138.68,3.16191534]
[1763553910481,15.08,138.69,138.68,0.05191534]
[1763553910979,0.04561718,138.7,138.68,3.16191534]
[1763553911171,15.12561718,138.7,138.68,3.16191534]
[1763553912381,24.67697818,138.7,138.68,0.05191534]
[1763553912579,119.19557818,138.7,138.62,3.11]
[1763553912782,18.18327818,138.7,138.63,3.11]
[1763553912981,6.4946,138.68,138.63,3.11]
[1763553913578,0.04629957,138.67,138.64,3.15826012]
[1763553915585,0.04629957,138.67,138.64,0.04826012]
[1763553916281,6.54139957,138.67,138.64,0.04826012]
[1763553916485,0.04629957,138.67,138.64,3.15826012]
[1763553918881,0.04629957,138.67,138.66,3.11]
[1763553919374,3.057661,138.74,138.67,3.11]
[1763553919576,15.08,138.73,138.67,3.11]
[1763553920378,0.05238837,138.71,138.69,3.15925947]
[1763553922581,0.05238837,138.71,138.7,3.11]
[1763553924679,0.05238837,138.71,138.69,3.18925947]
[1763553925484,0.05238837,138.71,138.69,0.04925947]
[1763553926381,6.54548837,138.71,138.69,0.04925947]
[1763553926887,21.62548837,138.71,138.69,0.04925947]
[1763553927883,15.13238837,138.71,138.69,0.04925947]
[1763553929691,6.4936,138.7,138.69,0.04925947]
[1763553933292,15.13238837,138.71,138.69,0.04925947]
[1763553933492,0.05238837,138.71,138.69,3.18925947]
[1763553934484,0.05238837,138.71,138.69,9.68325947]
[1763553934689,0.05238837,138.71,138.69,3.18925947]
[1763553936791,0.05238837,138.71,138.7,3.14]
[1763553939487,15.08,138.74,138.71,3.12]
[1763553940188,15.08,138.74,138.73,3.12]
[1763553940794,0.05293498,138.75,138.73,3.12]
[1763553941091,0.05293498,138.75,138.72,0.04640344]
[1763553941397,6.54423498,138.75,138.72,0.04640344]
[1763553941988,6.54423498,138.75,138.72,3.16640344]
[1763553946400,6.4919,138.74,138.72,0.04640344]
[1763553946701,6.4919,138.74,138.72,3.16640344]
[1763553947294,15.08,138.73,138.72,0.04640344]
[1763553947498,17.03372944,138.73,138.72,0.04640344]
[1763553948395,101.0014,138.72,138.64,3.12]
[1763553948698,1.95372944,138.7,138.64,3.12]
[1763553948892,15.08,138.69,138.64,3.12]
[1763553949294,0.05109823,138.68,138.65,3.16904631]
[1763553949993,6.54569823,138.68,138.65,3.16904631]
[1763553950199,0.05109823,138.68,138.65,3.16904631]
[1763553951997,6.54569823,138.68,138.65,3.16904631]
[1763553952204,0.05109823,138.68,138.65,3.16904631]
[1763553954609,8.44882944,138.67,138.65,0.04904631]
[1763553957510,8.44882944,138.67,138.56,1.95372944]
[1763553957511,6.4972,138.63,138.56,1.95372944]
[1763553957704,17.03372944,138.63,138.57,3.12]
[1763553958699,0.04699631,138.61,138.59,3.16911456]
[1763553959708,0.04699631,138.61,138.59,9.66781456]
[1763553959901,0.04699631,138.61,138.59,3.16911456]
[1763553960505,0.04699631,138.61,138.6,3.12]
[1763553961106,1.95372944,138.65,138.61,3.12]
[1763553961317,114.35564256,138.73,138.61,3.12]
[1763553961318,17.03372944,138.69,138.61,3.12]
[1763553962011,17.03372944,138.69,138.62,3.12]
[1763553962012,6.4946,138.68,138.62,3.12]
[1763553962211,0.0513372,138.66,138.64,3.16977704]
[1763553963802,0.0513372,138.66,138.64,9.66617704]
[1763553964008,1.95372944,138.71,138.65,3.12]
[1763553964303,8.44692944,138.71,138.67,3.12]
[1763553964818,1.95372944,138.71,138.67,3.12]
[1763553965016,0.05386978,138.7,138.68,3.17384058]
[1763553965315,6.54746978,138.7,138.68,3.17384058]
[1763553965725,6.54746978,138.7,138.68,0.05384058]
[1763553966211,8.50119922,138.7,138.68,3.17384058]
[1763553966619,8.50119922,138.7,138.68,0.05384058]
[1763553966818,8.50119922,138.7,138.68,3.17384058]
[1763553967620,2.00759922,138.7,138.68,3.17384058]
[1763553967820,0.05386978,138.7,138.68,3.17384058]
[1763553970922,0.05386978,138.7,138.68,9.66824058]
[1763553971112,0.05386978,138.7,138.68,3.17384058]
[1763553971616,0.05386978,138.7,138.69,3.04]
[1763553974720,1.95372944,138.74,138.71,3.04]
[1763553974929,1.95372944,138.77,138.71,3.04]
[1763553975825,0.05437068,138.75,138.73,3.08990908]
[1763553979630,0.05437068,138.75,138.73,9.58200908]
[1763553980127,0.05437068,138.75,138.74,3.04]
[1763553986627,0.05437068,138.75,138.74,9.5317]
[1763553987721,121.14545196,138.79,138.77,2.98]
[1763553987924,15.08,138.82,138.77,2.98]
[1763553988326,6.487,138.85,138.8,2.98]
[1763553988536,8.44072944,138.85,138.8,2.98]
[1763553988831,0.05052607,138.84,138.81,3.03294337]
[1763553990228,6.53762607,138.84,138.81,3.03294337]
[1763553990425,0.05052607,138.84,138.81,3.03294337]
[1763553990931,0.05052607,138.84,138.82,6.4879]
[1763553991236,0.05052607,138.84,138.83,2.98]
[1763553991529,15.08,138.88,138.84,2.98]
[1763553992030,1.95372944,138.9,138.85,2.98]
[1763553992231,1.25357973,138.93,138.85,2.98]
[1763553992232,15.08,138.91,138.85,2.98]
[1763553992626,15.08,138.91,138.86,2.98]
[1763553992830,0.04816113,138.9,138.87,3.03404602]
[1763553995333,0.04816113,138.9,138.87,0.05404602]
[1763553995532,6.53256113,138.9,138.87,3.03404602]
[1763553995729,0.04816113,138.9,138.87,3.03404602]
[1763553996433,0.04816113,138.9,138.88,2.98]
[1763553997234,0.04816113,138.9,138.89,2.98]
[1763553998522,0.04816113,138.9,138.88,2.98]
[1763553999138,0.04816113,138.9,138.87,0.05404602]
[1763553999322,0.04816113,138.9,138.87,3.03404602]
[1763554000027,15.08,138.95,138.87,3.03404602]
[1763554000226,15.08,138.95,138.87,2.98]
[1763554000637,15.08,138.95,138.9,2.98]
[1763554001030,0.0460939,138.94,138.91,0.05282355]
[1763554001336,0.0460939,138.94,138.91,3.03282355]
[1763554001941,15.08,139.0,138.91,3.03282355]
[1763554002139,6.4802,138.99,138.93,9.4628]
[1763554002341,6.4802,138.99,138.94,2.98]
[1763554003246,6.4806,138.98,138.95,0.05271495]
[1763554003438,100.8099,138.98,138.95,0.05271495]
[1763554003942,100.8099,138.98,138.89,2.98]
[1763554003943,100.8249,138.96,138.89,2.98]
[1763554004145,15.08,138.95,138.89,2.98]
[1763554004831,0.05010866,138.93,138.91,0.04647829]
[1763554005437,0.05010866,138.93,138.91,3.02647829]
[1763554006744,0.05010866,138.93,138.91,0.04647829]
[1763554007139,0.05010866,138.93,138.91,3.02647829]
[1763554007644,0.05010866,138.93,138.91,0.04647829]
[1763554007842,0.05010866,138.93,138.91,3.02647829]
[1763554008047,0.05010866,138.93,138.91,9.51017829]
[1763554008248,0.05010866,138.93,138.92,2.98]
[1763554011751,15.08,138.99,138.94,2.98]
[1763554012145,15.08,138.99,138.95,2.98]
[1763554012651,15.08,138.99,138.96,0.04954952]
[1763554012950,15.08,138.99,138.96,3.02954952]
[1763554013448,6.4807,138.98,138.96,0.04954952]
[1763554014253,6.4799,139.0,138.96,3.02954952]
[1763554015555,6.4802,138.99,138.96,0.04954952]
[1763554016056,6.4803,138.99,138.96,0.04954952]
[1763554016256,115.8698,139.01,138.96,0.04954952]
[1763554017157,6.4801,138.99,138.96,0.04954952]
[1763554017357,100.7722,139.04,138.96,3.02954952]
[1763554017657,15.08,139.02,138.96,3.02954952]
[1763554019048,15.08,139.02,138.96,0.04954952]
[1763554019251,6.4802,138.99,138.96,0.04954952]
[1763554020259,6.4806,138.98,138.96,0.04954952]
[1763554020460,102.0246969,139.04,138.96,3.02954952]
[1763554020765,15.1,139.03,138.96,3.02954952]
[1763554020966,6.4793,139.01,138.96,3.02954952]
[1763554021161,6.4793,139.01,138.97,9.4609]
[1763554021466,6.4793,139.01,138.97,2.98]
[1763554022566,15.1,139.03,138.97,2.98]
[1763554022567,21.5785,139.03,138.97,2.98]
[1763554023757,115.8754,139.03,138.96,0.04954952]
[1763554024553,6.4801,138.99,138.96,0.04954952]
[1763554024752,115.8754,139.03,138.96,3.02954952]
[1763554025459,15.1,139.02,138.96,3.02954952]
[1763554025666,15.1,139.02,138.99,2.98]
[1763554026673,132.57295684,139.05,138.99,2.98]
[1763554026971,15.1,139.04,138.99,2.98]
[1763554027173,15.1,139.04,138.98,0.04797854]
[1763554027373,100.78,139.02,138.98,0.04797854]
[1763554028676,100.7733,139.03,138.98,0.04797854]
[1763554028865,15.1,139.02,138.98,0.04797854]
[1763554029571,6.4795,139.01,138.98,0.04797854]
[1763554029771,15.1,139.0,138.98,0.04797854]
[1763554030181,15.1,139.0,138.98,3.31797854]
[1763554030674,15.1,139.02,138.98,3.31797854]
[1763554031771,21.5787,139.02,138.98,9.79847854]
[1763554032078,15.1,139.02,138.98,0.04797854]
[1763554032479,21.579,139.02,138.98,0.04797854]
[1763554032683,21.579,139.02,138.98,3.31797854]
[1763554033175,21.5792,139.01,138.98,0.04797854]
[1763554033376,15.1,139.01,138.98,0.04797854]
[1763554033575,6.48,138.99,138.98,0.04797854]
[1763554033771,15.1,139.01,138.98,0.04797854]
[1763554034173,6.48,138.99,138.98,0.04797854]
[1763554034372,107.35550051,139.0,138.92,3.27]
[1763554034869,3.0428682,138.99,138.92,3.27]
[1763554035377,0.04947675,138.97,138.94,0.05506764]
[1763554035573,15.1,138.96,138.94,0.05506764]
[1763554035974,15.1,138.96,138.94,3.32506764]
[1763554036174,0.04947675,138.97,138.94,3.32506764]
[1763554036369,0.04947675,138.97,138.96,3.27]
[1763554038881,15.1,138.99,138.97,9.751]
[1763554039992,15.1,138.99,138.97,3.27]
[1763554043181,15.1,138.99,138.94,0.05506764]
[1763554043182,15.1,138.99,138.94,3.32506764]
[1763554043384,15.1,138.99,138.94,0.05506764]
[1763554043692,6.481,138.97,138.94,0.05506764]
[1763554044195,100.8106,138.98,138.94,0.05506764]
[1763554044399,6.4815,138.96,138.94,0.05506764]
[1763554044989,6.4815,138.96,138.88,3.24]
[1763554044990,15.1,138.95,138.88,3.24]
[1763554045289,21.65960051,138.95,138.88,3.24]
[1763554045998,6.4833,138.92,138.9,0.05353684]
[1763554046386,15.1,138.91,138.9,0.05353684]
[1763554048502,0.04860688,138.93,138.9,0.05353684]
[1763554048503,15.14860688,138.93,138.9,0.05353684]
[1763554049094,21.63150688,138.93,138.9,0.05353684]
[1763554050598,6.4834,138.92,138.9,0.05353684]
[1763554050803,100.8564,138.92,138.84,3.24]
[1763554051100,107.41600051,138.92,138.84,3.24]
[1763554051303,6.4853,138.88,138.84,3.24]
[1763554052013,0.04704462,138.87,138.85,3.28860361]
[1763554052196,0.05427422,138.87,138.85,3.29072326]
[1763554053508,0.05427422,138.87,138.86,3.24]
[1763554053900,6.55960051,138.95,138.87,3.24]
[1763554054107,15.12,138.94,138.87,3.24]
[1763554054905,6.4829,138.93,138.87,3.24]
[1763554055106,0.05165115,138.92,138.89,0.05529688]
[1763554055804,0.05165115,138.92,138.89,3.29529688]
[1763554056310,6.53515115,138.92,138.89,0.05529688]
[1763554057199,0.05165115,138.92,138.89,3.29529688]
[1763554058501,0.05165115,138.92,138.89,0.05529688]
[1763554059603,0.05165115,138.92,138.89,3.25529688]
[1763554059802,0.05165115,138.92,138.9,3.2]
[1763554062314,0.05165115,138.92,138.9,9.6841]
[1763554062509,0.05165115,138.92,138.91,3.2]
[1763554063209,100.7984,139.0,138.92,9.6831]
[1763554063210,15.12,138.96,138.92,9.6831]
[1763554064213,15.12,138.96,138.88,100.8782]
[1763554064214,15.12,138.96,138.93,9.72866028]
[1763554065002,15.12,138.96,138.93,6.52866028]
[1763554065212,15.12,138.96,138.93,0.04586028]
[1763554065409,21.6015,138.96,138.93,0.04586028]
[1763554066213,6.4821,138.95,138.93,0.04586028]
[1763554066911,6.4814,138.97,138.93,3.24586028]
[1763554068611,15.12,138.98,138.93,6.52866028]
[1763554068802,15.12,138.98,138.94,3.2]
[1763554069002,5.0733476,139.01,138.94,3.2]
[1763554069204,15.1,139.0,138.96,3.24569703]
[1763554069616,6.4801,138.99,138.96,3.24569703]
[1763554070114,6.4801,138.99,138.96,0.04569703]
[1763554070315,6.4805,138.98,138.96,0.04569703]